lending/lending_fUSD_20240219
["ID","MTS","AMOUNT","RATE_DAILY","PERIOD"]
[314463973,1708368652649,-2950.25,0.00046575,30]
[314463974,1708368652660,-1276.86,0.00046575,30]
[314463975,1708368652670,-23686.09,0.00046575,30]
[314463976,1708368652681,-716.37,0.00046575,30]
[314463977,1708368652692,-1090.54,0.00046575,30]
[314463978,1708368652703,-500.0,0.00046575,30]
[314463979,1708368652714,-991.27,0.00046575,30]
[314463980,1708368652725,-814.35,0.00046575,30]
[314463981,1708368652739,-500.0,0.00046575,30]
[314463982,1708368652750,-500.0,0.00046575,30]
[314463983,1708368652760,-500.0,0.00046575,30]
[314463984,1708368652771,-562.68,0.00046575,30]
[314463985,1708368652782,-500.0,0.00046575,30]
[314463986,1708368652793,-500.0,0.00046575,30]
[314463987,1708368652804,-500.0,0.00046575,30]
[314463988,1708368652815,-2473.67,0.00046575,30]
[314463989,1708368652827,-1005.45,0.00046575,30]
[314463990,1708368652838,-500.0,0.00046575,30]
[314463991,1708368652848,-6347.01,0.00046575,30]
[314463992,1708368652859,-500.0,0.00046575,30]
[314463993,1708368652870,-5744.4,0.00046575,30]
[314463994,1708368652880,-635.12,0.00046575,30]
[314463995,1708368652891,-500.0,0.00046575,30]
[314463996,1708368652902,-500.0,0.00046575,30]
[314463997,1708368652912,-500.0,0.00046575,30]
[314463998,1708368652923,-1522.56,0.00046575,30]
[314463999,1708368652933,-2256.08,0.00046575,30]
[314464000,1708368652943,-500.0,0.00046575,30]
[314464001,1708368652953,-500.0,0.00046575,30]
[314464002,1708368652963,-500.0,0.00046575,30]
[314464003,1708368652973,-832.26,0.00046575,30]
[314464004,1708368652986,-500.0,0.00046575,30]
[314464005,1708368652997,-500.0,0.00046575,30]
[314464006,1708368653007,-500.0,0.00046575,30]
[314464007,1708368653022,-500.0,0.00046575,30]
[314464008,1708368653033,-500.0,0.00046575,30]
[314464009,1708368653044,-500.0,0.00046575,30]
[314464010,1708368653055,-500.0,0.00046575,30]
[314464011,1708368653065,-1236.68,0.00046575,30]
[314464012,1708368653075,-547.6,0.00046575,30]
[314464013,1708368653086,-1000.0,0.00046575,50]
[314464014,1708368653098,-1425.1,0.00046575,30]
[314464015,1708368653108,-564.527442,0.00046575,14]
[314464016,1708368653118,-362.672816,0.00046575,14]
[314464017,1708368653128,-500.0,0.00046575,30]
[314464018,1708368653138,-1902.0,0.00046575,30]
[314464019,1708368653148,-1223.76,0.00046575,30]
[314464020,1708368653158,-500.0,0.00046575,30]
[314464021,1708368653167,-564.527442,0.00046575,14]
[314464022,1708368653177,-728.44,0.00046575,30]
[314464023,1708368653187,-2315.58,0.00046575,30]
[314464024,1708368653197,-362.672816,0.00046575,14]
[314464025,1708368653206,-1914.39,0.00046575,30]
[314464026,1708368653216,-500.0,0.00046575,30]
[314464027,1708368653226,-2411.54,0.00046575,30]
[314464028,1708368653237,-500.0,0.00046575,30]
[314464029,1708368653247,-500.0,0.00046575,30]
[314464030,1708368653257,-2093.02,0.00046575,30]
[314464031,1708368653267,-500.0,0.00046575,30]
[314464032,1708368653277,-500.0,0.00046575,30]
[314464033,1708368653287,-500.0,0.00046575,30]
[314464034,1708368653297,-699.79,0.00046575,30]
[314464035,1708368653306,-500.0,0.00046575,30]
[314464036,1708368653316,-2508.62,0.00046575,30]
[314464037,1708368653325,-1000.0,0.00046575,10]
[314464038,1708368653334,-500.0,0.00046575,30]
[314464039,1708368653344,-853.23,0.00046575,30]
[314464040,1708368653353,-739.51,0.00046575,30]
[314464041,1708368653362,-2927.53,0.00046575,30]
[314464042,1708368653372,-687.82,0.00046575,30]
[314464043,1708368653381,-3294.84,0.00046575,30]
[314464044,1708368653391,-500.0,0.00046575,30]
[314464045,1708368653401,-500.0,0.00046575,30]
[314464046,1708368653412,-500.0,0.00046575,30]
[314464047,1708368653422,-690.84,0.00046575,30]
[314464048,1708368653432,-692.65,0.00046575,30]
[314464049,1708368653441,-2601.84,0.00046575,30]
[314464050,1708368653451,-500.0,0.00046575,30]
[314464051,1708368653460,-500.0,0.00046575,30]
[314464052,1708368653470,-1700.56,0.00046575,30]
[314464053,1708368653479,-500.0,0.00046575,30]
[314464054,1708368653492,-500.0,0.00046575,30]
[314464055,1708368653501,-821.54,0.00046575,30]
[314464056,1708368653510,-10482.06,0.00046575,30]
[314464057,1708368653520,-500.0,0.00046575,30]
[314464058,1708368653530,-5118.98,0.00046575,30]
[314464059,1708368653539,-724.59,0.00046575,30]
[314464060,1708368653549,-606.93,0.00046575,30]
[314464061,1708368653558,-1435.69,0.00046575,30]
[314464062,1708368653568,-2720.12,0.00046575,30]
[314464063,1708368653577,-550.33,0.00046575,30]
[314464064,1708368653586,-500.0,0.00046575,30]
[314464065,1708368653595,-500.0,0.00046575,30]
[314464066,1708368653605,-500.0,0.00046575,30]
[314464067,1708368653614,-2196.17,0.00046575,30]
[314464068,1708368653623,-2104.04,0.00046575,30]
[314464069,1708368653633,-7104.37,0.00046575,30]
[314464070,1708368653642,-504.73,0.00046575,30]
[314464071,1708368653651,-723.4,0.00046575,30]
[314464072,1708368653660,-500.0,0.00046575,30]
[314464073,1708368653669,-500.0,0.00046575,30]
[314464074,1708368653679,-500.0,0.00046575,30]
[314464075,1708368653688,-500.0,0.00046575,30]
[314464076,1708368653698,-500.0,0.00046575,30]
[314464077,1708368653707,-1570.25,0.00046575,30]
[314464078,1708368653717,-500.0,0.00046575,30]
[314464079,1708368653727,-500.0,0.00046575,30]
[314464080,1708368653740,-1109.49,0.00046575,30]
[314464081,1708368653750,-500.0,0.00046575,30]
[314464082,1708368653759,-500.0,0.00046575,30]
[314464083,1708368653769,-2184.37,0.00046575,30]
[314464084,1708368653778,-500.0,0.00046575,30]
[314464085,1708368653788,-500.0,0.00046575,30]
[314464086,1708368653798,-1652.43,0.00046575,30]
[314464087,1708368653808,-500.0,0.00046575,30]
[314464088,1708368653818,-500.0,0.00046575,30]
[314464089,1708368653828,-1462.02,0.00046575,30]
[314464090,1708368653839,-736.93,0.00046575,30]
[314464091,1708368653848,-728.09,0.00046575,30]
[314464092,1708368653858,-4402.59,0.00046575,30]
[314464093,1708368653867,-2028.71,0.00046575,30]
[314464094,1708368653877,-854.92,0.00046575,30]
[314464095,1708368653887,-1646.2,0.00046575,30]
[314464096,1708368653896,-500.0,0.00046575,30]
[314464097,1708368653905,-1932.82,0.00046575,30]
[314464098,1708368653915,-623.79206424,0.00046575,30]
[314464099,1708368653924,-3172.5,0.00046575,30]
[314464100,1708368653934,-2240.1,0.00046575,30]
[314464101,1708368653944,-2442.28,0.00046575,30]
[314464102,1708368653953,-500.0,0.00046575,30]
[314464103,1708368653963,-500.0,0.00046575,30]
[314464104,1708368653972,-500.0,0.00046575,30]
[314464105,1708368653982,-500.0,0.00046575,30]
[314464106,1708368653995,-995.64,0.00046575,30]
[314464107,1708368654004,-500.0,0.00046575,30]
[314464108,1708368654014,-799.75,0.00046575,30]
[314464109,1708368654023,-2107.27,0.00046575,30]
[314464110,1708368654033,-500.0,0.00046575,2]
[314464111,1708368654043,-500.0,0.00046575,30]
[314464112,1708368654052,-2937.46,0.00046575,30]
[314464113,1708368654062,-500.0,0.00046575,30]
[314464114,1708368654072,-3144.01,0.00046575,30]
[314464115,1708368654081,-1348.72,0.00046575,30]
[314464116,1708368654090,-500.0,0.00046575,30]
[314464117,1708368654100,-1161.79,0.00046575,30]
[314464118,1708368654109,-656.22,0.00046575,30]
[314464119,1708368654118,-1809.4,0.00046575,30]
[314464120,1708368654127,-2455.3,0.00046575,30]
[314464121,1708368654136,-3314.58,0.00046575,30]
[314464122,1708368654145,-500.0,0.00046575,30]
[314464123,1708368654154,-500.0,0.00046575,30]
[314464124,1708368654163,-2079.25,0.00046575,30]
[314464125,1708368654172,-2749.99,0.00046575,30]
[314464126,1708368654182,-2604.24,0.00046575,30]
[314464127,1708368654191,-500.0,0.00046575,30]
[314464128,1708368654201,-500.0,0.00046575,30]
[314464129,1708368654286,-500.0,0.00046575,30]
[314464130,1708368654296,-774.33,0.00046575,30]
[314464131,1708368654305,-500.0,0.00046575,30]
[314464132,1708368654314,-500.0,0.00046575,30]
[314464133,1708368654323,-500.0,0.00046575,30]
[314464134,1708368654333,-500.0,0.00046575,30]
[314464135,1708368654342,-500.0,0.00046575,30]
[314464136,1708368654351,-500.0,0.00046575,30]
[314464137,1708368654361,-517.72,0.00046575,30]
[314464138,1708368654370,-1677.75,0.00046575,30]
[314464139,1708368654379,-500.0,0.00046575,30]
[314464140,1708368654388,-2854.87,0.00046575,30]
[314464141,1708368654397,-1722.41,0.00046575,30]
[314464142,1708368654408,-850.52,0.00046575,30]
[314464143,1708368654417,-2028.62,0.00046575,30]
[314464144,1708368654427,-512.56937268,0.00046575,30]
[314464145,1708368654437,-500.0,0.00046575,30]
[314464146,1708368654446,-2296.4,0.00046575,30]
[314464147,1708368654456,-500.0,0.00046575,14]
[314464148,1708368654465,-517.25,0.00046575,30]
[314464149,1708368654474,-1784.3,0.00046575,30]
[314464150,1708368654485,-500.0,0.00046575,30]
[314464151,1708368654494,-1317.62,0.00046575,30]
[314464152,1708368654503,-500.0,0.00046575,30]
[314464153,1708368654513,-2465.92,0.00046575,30]
[314464154,1708368654522,-500.0,0.00046575,30]
[314464155,1708368654532,-1911.23,0.00046575,30]
[314464156,1708368654541,-500.0,0.00046575,30]
[314464157,1708368654551,-2314.73,0.00046575,30]
[314464158,1708368654560,-602.57,0.00046575,30]
[314464159,1708368654569,-500.0,0.00046575,30]
[314464160,1708368654579,-500.0,0.00046575,30]
[314464161,1708368654588,-500.0,0.00046575,30]
[314464162,1708368654598,-631.04,0.00046575,30]
[314464163,1708368654607,-500.0,0.00046575,30]
[314464164,1708368654616,-3981.74,0.00046575,30]
[314464165,1708368654626,-1169.2,0.00046575,30]
[314464166,1708368654635,-1552.04,0.00046575,30]
[314464167,1708368654645,-540.37,0.00046575,30]
[314464168,1708368654654,-552.17,0.00046575,30]
[314464169,1708368654664,-2113.91,0.00046575,30]
[314464170,1708368654674,-500.0,0.00046575,30]
[314464171,1708368654683,-500.0,0.00046575,30]
[314464172,1708368654693,-500.0,0.00046575,30]
[314464173,1708368654703,-500.0,0.00046575,2]
[314464174,1708368654714,-2085.91,0.00046575,30]
[314464175,1708368654724,-1956.67,0.00046575,30]
[314464176,1708368654734,-5088.49,0.00046575,30]
[314464177,1708368654745,-643.0,0.00046575,30]
[314464178,1708368654754,-2605.55,0.00046575,30]
[314464179,1708368654764,-500.0,0.00046575,30]
[314464180,1708368654773,-867.27,0.00046575,30]
[314464181,1708368654782,-500.0,0.00046575,30]
[314464182,1708368654792,-859.22,0.00046575,30]
[314464183,1708368654801,-779.16,0.00046575,30]
[314464184,1708368654811,-713.28,0.00046575,30]
[314464185,1708368654821,-500.0,0.00046575,30]
[314464186,1708368654830,-816.59,0.00046575,30]
[314464187,1708368654839,-709.04,0.00046575,30]
[314464188,1708368654849,-2492.45,0.00046575,30]
[314464189,1708368654858,-3722.9,0.00046575,30]
[314464190,1708368654868,-500.0,0.00046575,30]
[314464191,1708368654877,-883.63,0.00046575,30]
[314464192,1708368654888,-500.0,0.00046575,30]
[314464193,1708368654897,-1017.47,0.00046575,30]
[314464194,1708368654907,-760.96,0.00046575,30]
[314464195,1708368654916,-1380.2,0.00046575,30]
[314464196,1708368654925,-1674.2,0.00046575,30]
[314464197,1708368654935,-1574.11,0.00046575,30]
[314464198,1708368654944,-556.81,0.00046575,30]
[314464199,1708368654953,-655.0,0.00046575,30]
[314464200,1708368654962,-500.0,0.00046575,30]
[314464201,1708368654972,-511.17,0.00046575,30]
[314464202,1708368654982,-500.0,0.00046575,30]
[314464203,1708368654993,-756.71,0.00046575,30]
[314464204,1708368655003,-915.36,0.00046575,30]
[314464205,1708368655014,-1056.29,0.00046575,30]
[314464206,1708368655231,-500.0,0.00046575,30]
[314464207,1708368655242,-500.0,0.00046575,30]
[314464208,1708368655251,-8203.56,0.00046575,30]
[314464209,1708368655260,-2423.57,0.00046575,30]
[314464210,1708368655269,-1478.67,0.00046575,30]
[314464211,1708368655279,-513.33,0.00046575,30]
[314464212,1708368655288,-1345.26,0.00046575,30]
[314464213,1708368655297,-1202.65,0.00046575,30]
[314464214,1708368655306,-949.04,0.00046575,30]
[314464215,1708368655316,-1347.28,0.00046575,30]
[314464216,1708368655325,-500.0,0.00046575,30]
[314464217,1708368655334,-854.95,0.00046575,30]
[314464218,1708368655344,-500.0,0.00046575,30]
[314464219,1708368655353,-762.4,0.00046575,30]
[314464220,1708368655362,-504.56289681,0.00046575,30]
[314464221,1708368655371,-500.0,0.00046575,30]
[314464222,1708368655381,-500.0,0.00046575,30]
[314464223,1708368655390,-46480.79913319,0.00046583,8]
[314464224,1708368655399,-150.0,0.00046599,6]
[314464225,1708368655410,-150.0,0.00046599,6]
[314464226,1708368655420,-10443.08,0.000466,7]
[314464227,1708368655430,-792.87,0.000466,7]
[314464228,1708368655439,-41534.3,0.000466,7]
[314464229,1708368655449,-28991.71,0.000466,7]
[314464230,1708368655459,-2989.52139729,0.00046608,22]
[314464231,1708368655468,-557.9707,0.00046615,2]
[314464232,1708368655478,-211.82443069,0.00046662,30]
[314464233,1708368655488,-650.06,0.00046689,15]
[314464234,1708368655497,-650.06,0.00046689,15]
[314464235,1708368655506,-150.0,0.00046699,7]
[314464236,1708368655515,-156.89813651,0.00046709,30]
[314464237,1708368655525,-154.0583357,0.00046733,30]
[314464238,1708368655535,-150.0,0.00046765,7]
[314464239,1708368655544,-150.0,0.00046775,7]
[314464240,1708368655553,-150.015539,0.00046786,30]
[314464241,1708368655562,-300.0,0.000468,7]
[314464242,1708368655571,-150.0,0.00046814,7]
[314464243,1708368655580,-150.0,0.00046823,7]
[314464244,1708368655589,-214.48267473,0.00046834,30]
[314464245,1708368655598,-3319.32799788,0.00046848,2]
[314464246,1708368655608,-500.0,0.00046849,30]
[314464247,1708368655617,-579.90127591,0.00046849,30]
[314464248,1708368655626,-424.5064438,0.00046849,30]
[314464249,1708368655635,-193.96207386,0.00046849,30]
[314464250,1708368655645,-500.0,0.00046849,30]
[314464251,1708368655654,-500.0,0.00046849,30]
[314464252,1708368655664,-500.0,0.00046849,30]
[314464253,1708368655673,-500.0,0.00046849,30]
[314464254,1708368655682,-150.0,0.00046849,30]
[314464255,1708368655692,-500.0,0.00046849,30]
[314464256,1708368655701,-500.0,0.00046849,30]
[314464257,1708368655710,-500.0,0.00046849,30]
[314464258,1708368655720,-500.0,0.00046849,30]
[314464259,1708368655729,-500.0,0.00046849,30]
[314464260,1708368655739,-500.0,0.00046849,30]
[314464261,1708368655748,-500.0,0.00046849,30]
[314464262,1708368655758,-215.7319943,0.00046849,30]
[314464263,1708368655767,-500.0,0.00046849,30]
[314464264,1708368655777,-500.0,0.00046849,30]
[314464265,1708368655786,-500.0,0.00046849,30]
[314464266,1708368655795,-640.94,0.00046849,30]
[314464267,1708368655805,-500.0,0.00046849,30]
[314464268,1708368655814,-500.0,0.00046849,30]
[314464269,1708368655823,-500.0,0.00046849,30]
[314464270,1708368655833,-500.0,0.00046849,30]
[314464271,1708368655843,-500.0,0.00046849,30]
[314464272,1708368655852,-500.0,0.00046849,30]
[314464273,1708368655869,-500.0,0.00046849,30]
[314464274,1708368655886,-500.0,0.00046849,30]
[314464275,1708368655896,-535.81,0.00046849,30]
[314464276,1708368655907,-500.0,0.00046849,30]
[314464277,1708368655918,-500.0,0.00046849,30]
[314464278,1708368655928,-500.0,0.00046849,30]
[314464279,1708368655938,-500.0,0.00046849,30]
[314464280,1708368655948,-500.0,0.00046849,30]
[314464281,1708368655958,-500.0,0.00046849,30]
[314464282,1708368655967,-500.0,0.00046849,30]
[314464283,1708368655977,-500.0,0.00046849,30]
[314464284,1708368655988,-500.0,0.00046849,30]
[314464285,1708368656002,-500.0,0.00046849,30]
[314464286,1708368656011,-500.0,0.00046849,30]
[314464287,1708368656021,-500.0,0.00046849,30]
[314464288,1708368656030,-500.0,0.00046849,30]
[314464289,1708368656042,-500.0,0.00046849,30]
[314464290,1708368656052,-642.01,0.00046849,30]
[314464291,1708368656072,-624.96,0.00046849,30]
[314464292,1708368656082,-500.0,0.00046849,30]
[314464293,1708368656093,-500.0,0.00046849,30]
[314464294,1708368656104,-500.0,0.00046849,30]
[314464295,1708368656113,-500.0,0.00046849,30]
[314464296,1708368656123,-500.0,0.00046849,30]
[314464297,1708368656133,-500.0,0.00046849,30]
[314464298,1708368656143,-467.28129342,0.00046849,30]
[314464299,1708368656153,-500.0,0.00046849,30]
[314464300,1708368656163,-500.0,0.00046849,30]
[314464301,1708368656173,-500.0,0.00046849,30]
[314464302,1708368656182,-500.0,0.00046849,30]
[314464303,1708368656192,-500.0,0.00046849,30]
[314464304,1708368656201,-500.0,0.00046849,30]
[314464305,1708368656211,-500.0,0.00046849,30]
[314464306,1708368656221,-582.97,0.00046849,30]
[314464307,1708368656230,-641.29,0.00046849,30]
[314464308,1708368656241,-500.0,0.00046849,30]
[314464309,1708368656251,-500.0,0.00046849,30]
[314464310,1708368656260,-500.0,0.00046849,30]
[314464311,1708368656270,-500.0,0.00046849,30]
[314464312,1708368656280,-500.0,0.00046849,30]
[314464313,1708368656290,-500.0,0.00046849,30]
[314464314,1708368656299,-500.0,0.00046849,30]
[314464315,1708368656308,-500.0,0.00046849,30]
[314464316,1708368656317,-500.0,0.00046849,30]
[314464317,1708368656327,-500.0,0.00046849,30]
[314464318,1708368656336,-500.0,0.00046849,30]
[314464319,1708368656346,-531.21,0.00046849,30]
[314464320,1708368656356,-500.0,0.00046849,30]
[314464321,1708368656367,-685.28,0.00046849,30]
[314464322,1708368656377,-500.0,0.00046849,30]
[314464323,1708368656387,-500.0,0.00046849,30]
[314464324,1708368656397,-500.0,0.00046849,30]
[314464325,1708368656407,-500.0,0.00046849,30]
[314464326,1708368656419,-500.0,0.00046849,30]
[314464327,1708368656429,-500.0,0.00046849,30]
[314464328,1708368656439,-500.0,0.00046849,30]
[314464329,1708368656450,-500.0,0.00046849,30]
[314464330,1708368656460,-500.0,0.00046849,30]
[314464331,1708368656470,-500.0,0.00046849,30]
[314464332,1708368656481,-633.19,0.00046849,30]
[314464333,1708368656493,-500.0,0.00046849,30]
[314464334,1708368656504,-500.0,0.00046849,30]
[314464335,1708368656513,-500.0,0.00046849,30]
[314464336,1708368656523,-500.0,0.00046849,30]
[314464337,1708368656534,-500.0,0.00046849,30]
[314464338,1708368656544,-500.0,0.00046849,30]
[314464339,1708368656554,-500.0,0.00046849,30]
[314464340,1708368656564,-500.0,0.00046849,30]
[314464341,1708368656575,-500.0,0.00046849,30]
[314464342,1708368656584,-232.21266143,0.00046849,30]
[314464343,1708368657180,-267.78733857,0.00046849,30]
[314464344,1708368657190,-500.0,0.00046849,30]
[314464345,1708368657201,-500.0,0.00046849,30]
[314464346,1708368657210,-500.0,0.00046849,30]
[314464347,1708368657220,-500.0,0.00046849,30]
[314464348,1708368657230,-500.0,0.00046849,30]
[314464349,1708368657242,-500.0,0.00046849,30]
[314464350,1708368657251,-500.0,0.00046849,30]
[314464351,1708368657260,-500.0,0.00046849,30]
[314464352,1708368657270,-500.0,0.00046849,30]
[314464353,1708368657280,-500.0,0.00046849,30]
[314464354,1708368657289,-500.0,0.00046849,30]
[314464355,1708368657299,-500.0,0.00046849,30]
[314464356,1708368657309,-500.0,0.00046849,30]
[314464357,1708368657318,-500.0,0.00046849,30]
[314464358,1708368657327,-500.0,0.00046849,30]
[314464359,1708368657337,-500.0,0.00046849,30]
[314464360,1708368657346,-500.0,0.00046849,30]
[314464361,1708368657356,-500.0,0.00046849,30]
[314464362,1708368657366,-500.0,0.00046849,30]
[314464363,1708368657376,-260.17435749,0.00046849,30]
[314464364,1708368657390,-239.82564251,0.00046849,30]
[314464365,1708368657400,-522.17,0.00046849,30]
[314464366,1708368657411,-2000.0,0.00046849,30]
[314464367,1708368657421,-221.29198058,0.00046849,30]
[314464368,1708368657434,-666.08801942,0.00046849,30]
[314464369,1708368657444,-500.0,0.00046849,30]
[314464370,1708368657454,-37.85699413,0.00046849,30]
[314464371,1708368657467,-462.14300587,0.00046849,30]
[314464372,1708368657477,-500.0,0.00046849,30]
[314464373,1708368657487,-500.0,0.00046849,30]
[314464374,1708368657497,-367.17386206,0.00046849,30]
[314464375,1708368657510,-132.82613794,0.00046849,30]
[314464376,1708368657521,-500.0,0.00046849,30]
[314464377,1708368657531,-369.29717023,0.00046849,30]
[314464378,1708368657750,-130.70282977,0.00046849,30]
[314464379,1708368657759,-500.0,0.00046849,30]
[314464380,1708368657769,-365.11416547,0.00046849,30]
[314464381,1708368657790,-150.31491457,0.00046849,30]
[314464382,1708368657800,-354.46208438,0.00046849,30]
[314464383,1708368657816,-145.53791562,0.00046849,30]
[314464384,1708368657826,-500.0,0.00046849,30]
[314464385,1708368657836,-500.0,0.00046849,30]
[314464386,1708368657846,-888.82,0.00046849,30]
[314464387,1708368657855,-500.0,0.00046849,30]
[314464388,1708368657865,-500.0,0.00046849,30]
[314464389,1708368657875,-500.0,0.00046849,30]
[314464390,1708368657885,-805.55,0.00046849,30]
[314464391,1708368657894,-500.0,0.00046849,30]
[314464392,1708368657904,-500.0,0.00046849,30]
[314464393,1708368657913,-500.0,0.00046849,30]
[314464394,1708368657923,-500.0,0.00046849,30]
[314464395,1708368657933,-500.0,0.00046849,30]
[314464396,1708368657942,-500.0,0.00046849,30]
[314464397,1708368657951,-500.0,0.00046849,30]
[314464398,1708368657960,-500.0,0.00046849,30]
[314464399,1708368657970,-500.0,0.00046849,30]
[314464400,1708368657979,-500.0,0.00046849,30]
[314464401,1708368657990,-500.0,0.00046849,30]
[314464402,1708368657999,-500.0,0.00046849,30]
[314464403,1708368658009,-500.0,0.00046849,30]
[314464404,1708368658018,-834.16,0.00046849,30]
[314464405,1708368658030,-500.0,0.00046849,30]
[314464406,1708368658039,-500.0,0.00046849,30]
[314464407,1708368658048,-500.0,0.00046849,30]
[314464408,1708368658057,-500.0,0.00046849,30]
[314464409,1708368658067,-500.0,0.00046849,30]
[314464410,1708368658076,-172.44045341,0.00046849,30]
[314464411,1708368658085,-1152.48,0.00046849,30]
[314464412,1708368658096,-500.0,0.00046849,30]
[314464413,1708368658105,-500.0,0.00046849,30]
[314464414,1708368658115,-500.0,0.00046849,30]
[314464415,1708368658124,-504.76,0.00046849,30]
[314464416,1708368658134,-842.01,0.00046849,30]
[314464417,1708368658143,-500.0,0.00046849,30]
[314464418,1708368658152,-528.13928947,0.00046849,30]
[314464419,1708368658162,-500.0,0.00046849,30]
[314464420,1708368658171,-500.0,0.00046849,30]
[314464421,1708368658180,-500.0,0.00046849,30]
[314464422,1708368658190,-500.0,0.00046849,30]
[314464423,1708368658199,-500.0,0.00046849,30]
[314464424,1708368658208,-545.39497053,0.00046849,30]
[314464425,1708368658217,-500.0,0.00046849,30]
[314464426,1708368658226,-591.49,0.00046849,30]
[314464427,1708368658236,-500.0,0.00046849,30]
[314464428,1708368658245,-500.0,0.00046849,30]
[314464429,1708368658254,-584.29,0.00046849,30]
[314464430,1708368658263,-500.0,0.00046849,30]
[314464431,1708368658272,-500.0,0.00046849,30]
[314464432,1708368658281,-500.0,0.00046849,30]
[314464433,1708368658291,-500.0,0.00046849,30]
[314464434,1708368658300,-818.08,0.00046849,30]
[314464435,1708368658309,-500.0,0.00046849,30]
[314464436,1708368658318,-500.0,0.00046849,30]
[314464437,1708368658328,-500.0,0.00046849,30]
[314464438,1708368658336,-500.0,0.00046849,30]
[314464439,1708368658345,-500.0,0.00046849,30]
[314464440,1708368658355,-500.0,0.00046849,30]
[314464441,1708368658364,-500.0,0.00046849,30]
[314464442,1708368658374,-761.13,0.00046849,30]
[314464443,1708368658383,-500.0,0.00046849,30]
[314464444,1708368658393,-555.14,0.00046849,30]
[314464445,1708368658403,-150.88792009,0.00046849,30]
[314464446,1708368658413,-534.065453,0.00046849,30]
[314464447,1708368658423,-500.0,0.00046849,30]
[314464448,1708368658432,-500.0,0.00046849,30]
[314464449,1708368658442,-500.0,0.00046849,30]
[314464450,1708368658451,-500.0,0.00046849,30]
[314464451,1708368658460,-500.0,0.00046849,30]
[314464452,1708368658470,-500.0,0.00046849,30]
[314464453,1708368658480,-500.0,0.00046849,30]
[314464454,1708368658492,-500.0,0.00046849,30]
[314464455,1708368658502,-586.02968808,0.00046849,30]
[314464456,1708368658512,-729.88,0.00046849,30]
[314464457,1708368658522,-534.72,0.00046849,30]
[314464458,1708368658532,-500.0,0.00046849,30]
[314464459,1708368658542,-500.0,0.00046849,2]
[314464460,1708368658551,-639.96558451,0.00046849,30]
[314464461,1708368658561,-216.33306565,0.00046849,30]
[314464462,1708368658570,-500.0,0.00046849,30]
[314464463,1708368658580,-500.0,0.00046849,30]
[314464464,1708368658590,-500.0,0.00046849,30]
[314464465,1708368658599,-500.0,0.00046849,30]
[314464466,1708368658609,-249.27073999,0.00046849,2]
[314464467,1708368658618,-544.12,0.00046849,30]
[314464468,1708368658627,-1683.23,0.00046849,2]
[314464469,1708368658637,-500.0,0.00046849,30]
[314464470,1708368658646,-500.0,0.00046849,30]
[314464471,1708368658655,-500.0,0.00046849,30]
[314464472,1708368658665,-531.12105011,0.00046849,30]